[Event "*** SCC Grand Prix: Titled Tuesday Blitz"]
[Site "Chess.com"]
[Date "2020.08.04"]
[Round "8"]
[White "Fighter008"]
[Black "praveenb2002"]
[Result "1-0"]
[WhiteElo "2641"]
[BlackElo "2774"]
[TimeControl "180+1"]
[EndTime "15:18:03 PDT"]
[Termination "Fighter008 won on time"]

1. e4 {[%clk 0:03:00.9]} 1... c5 {[%clk 0:02:58.4]} 2. Nf3 {[%clk 0:03:00.5]}
2... d6 {[%clk 0:02:58.6]} 3. d4 {[%clk 0:03:00.5]} 3... cxd4 {[%clk 0:02:59.3]}
4. Nxd4 {[%clk 0:02:57.9]} 4... Nf6 {[%clk 0:02:59.5]} 5. Nc3 {[%clk 0:02:57.4]}
5... Nc6 {[%clk 0:03:00]} 6. f3 {[%clk 0:02:55.6]} 6... e5 {[%clk 0:02:58.2]} 7.
Nb3 {[%clk 0:02:55.4]} 7... Be6 {[%clk 0:02:57.5]} 8. Be3 {[%clk 0:02:55.1]}
8... Be7 {[%clk 0:02:55.5]} 9. Nd5 {[%clk 0:02:54.6]} 9... Bxd5 {[%clk 0:02:56]}
10. exd5 {[%clk 0:02:55.5]} 10... Nb4 {[%clk 0:02:49.1]} 11. c4 {[%clk
0:02:55.1]} 11... a5 {[%clk 0:02:49.5]} 12. Qd2 {[%clk 0:02:54.7]} 12... O-O
{[%clk 0:02:48.7]} 13. Be2 {[%clk 0:02:53.9]} 13... b6 {[%clk 0:02:44.2]} 14.
O-O {[%clk 0:02:51.6]} 14... Na6 {[%clk 0:02:30.9]} 15. Rae1 {[%clk 0:02:37.6]}
15... Nd7 {[%clk 0:02:24.7]} 16. f4 {[%clk 0:02:32.6]} 16... Qc7 {[%clk
0:02:22.9]} 17. Nc1 {[%clk 0:02:22.4]} 17... Nac5 {[%clk 0:02:17.3]} 18. b3
{[%clk 0:02:17.7]} 18... f5 {[%clk 0:02:14.9]} 19. Kh1 {[%clk 0:02:16.2]} 19...
Ne4 {[%clk 0:01:51]} 20. Qc2 {[%clk 0:02:10.4]} 20... b5 {[%clk 0:01:44.4]} 21.
fxe5 {[%clk 0:02:07.5]} 21... dxe5 {[%clk 0:01:38]} 22. Rxf5 {[%clk 0:02:05]}
22... Rxf5 {[%clk 0:01:30.5]} 23. Qxe4 {[%clk 0:02:04.6]} 23... Raf8 {[%clk
0:01:30.4]} 24. Nd3 {[%clk 0:01:56.5]} 24... bxc4 {[%clk 0:01:26]} 25. bxc4
{[%clk 0:01:55.1]} 25... Nc5 {[%clk 0:01:13.7]} 26. Bxc5 {[%clk 0:01:53.1]}
26... Bxc5 {[%clk 0:01:13.4]} 27. Bf3 {[%clk 0:01:53.6]} 27... Bd4 {[%clk
0:01:09.7]} 28. c5 {[%clk 0:01:40.5]} 28... Rf4 {[%clk 0:00:51.2]} 29. Nxf4
{[%clk 0:01:22]} 29... Rxf4 {[%clk 0:00:52.1]} 30. Qb1 {[%clk 0:00:56.1]} 30...
Qxc5 {[%clk 0:00:48.5]} 31. Rc1 {[%clk 0:00:53.8]} 31... Qb4 {[%clk 0:00:46.1]}
32. Qd3 {[%clk 0:00:49.8]} 32... Rf8 {[%clk 0:00:41.8]} 33. a3 {[%clk
0:00:44.9]} 33... Qd6 {[%clk 0:00:35.7]} 34. Rc6 {[%clk 0:00:44.1]} 34... Qb8
{[%clk 0:00:25.9]} 35. d6 {[%clk 0:00:42.1]} 35... Qb2 {[%clk 0:00:21.7]} 36. d7
{[%clk 0:00:24.6]} 36... Qa1+ {[%clk 0:00:10.8]} 37. Bd1 {[%clk 0:00:22.5]}
37... Qxa3 {[%clk 0:00:05.9]} 38. Qc4+ {[%clk 0:00:19.2]} 38... Kh8 {[%clk
0:00:03.4]} 39. Rc8 {[%clk 0:00:18.6]} 39... Qe7 {[%clk 0:00:01.9]} 40. Bf3
{[%clk 0:00:11.2]} 40... h6 {[%clk 0:00:01.3]} 41. Qe6 {[%clk 0:00:08.4]} 1-0

[Event "*** SCC Grand Prix: Titled Tuesday Blitz"]
[Site "Chess.com"]
[Date "2020.08.04"]
[Round "8"]
[White "chenxiaoyuer"]
[Black "Keithonsky"]
[Result "1-0"]
[WhiteElo "2464"]
[BlackElo "2555"]
[TimeControl "180+1"]
[EndTime "15:18:04 PDT"]
[Termination "chenxiaoyuer won by resignation"]

1. e4 {[%clk 0:03:00.9]} 1... e6 {[%clk 0:01:58.6]} 2. d4 {[%clk 0:03:00.4]}
2... d5 {[%clk 0:01:58.5]} 3. Nd2 {[%clk 0:03:00.4]} 3... c5 {[%clk 0:01:58]} 4.
Ngf3 {[%clk 0:02:59.9]} 4... cxd4 {[%clk 0:01:58.5]} 5. Nxd4 {[%clk 0:02:59.5]}
5... Nc6 {[%clk 0:01:58.5]} 6. Bb5 {[%clk 0:02:53.8]} 6... Qb6 {[%clk
0:01:58.4]} 7. exd5 {[%clk 0:02:49.9]} 7... exd5 {[%clk 0:01:53.4]} 8. N2b3
{[%clk 0:02:45.6]} 8... Bd7 {[%clk 0:01:53.2]} 9. O-O {[%clk 0:02:43.2]} 9...
Be7 {[%clk 0:01:51.1]} 10. Re1 {[%clk 0:02:40.9]} 10... Nf6 {[%clk 0:01:47.7]}
11. Be3 {[%clk 0:02:32.5]} 11... Qd8 {[%clk 0:01:48.2]} 12. Nxc6 {[%clk
0:02:06]} 12... bxc6 {[%clk 0:01:49.1]} 13. Bc5 {[%clk 0:02:05.6]} 13... Ne4
{[%clk 0:01:44]} 14. Bxe7 {[%clk 0:02:02]} 14... Qxe7 {[%clk 0:01:40.8]} 15. Bd3
{[%clk 0:02:00.9]} 15... O-O {[%clk 0:01:31.2]} 16. f3 {[%clk 0:01:55.8]} 16...
f5 {[%clk 0:01:31.7]} 17. fxe4 {[%clk 0:01:55]} 17... fxe4 {[%clk 0:01:32.6]}
18. Bf1 {[%clk 0:01:50.8]} 18... a5 {[%clk 0:01:32.5]} 19. Qd4 {[%clk
0:01:43.5]} 19... a4 {[%clk 0:01:32.1]} 20. Nc5 {[%clk 0:01:43.5]} 20... Be8
{[%clk 0:01:28.2]} 21. b3 {[%clk 0:01:32.4]} 21... a3 {[%clk 0:01:22.9]} 22. Be2
{[%clk 0:01:25.6]} 22... Bf7 {[%clk 0:01:22.4]} 23. Rf1 {[%clk 0:01:25.3]} 23...
Kh8 {[%clk 0:01:18.8]} 24. Rf4 {[%clk 0:01:20.8]} 24... Rfb8 {[%clk 0:01:16.7]}
25. Raf1 {[%clk 0:01:16]} 25... Bg8 {[%clk 0:01:17.2]} 26. c3 {[%clk 0:01:12]}
26... Ra5 {[%clk 0:01:13.9]} 27. b4 {[%clk 0:01:12.1]} 27... Raa8 {[%clk
0:01:14.3]} 28. Rf5 {[%clk 0:01:00.2]} 28... Re8 {[%clk 0:01:12.4]} 29. Rh5
{[%clk 0:00:55.7]} 29... Rad8 {[%clk 0:01:10.5]} 30. Rf4 {[%clk 0:00:55]} 30...
Rf8 {[%clk 0:01:08.4]} 31. Rg4 {[%clk 0:00:42.9]} 31... Rf6 {[%clk 0:01:04]} 32.
Rhg5 {[%clk 0:00:40.3]} 32... Rf7 {[%clk 0:00:49.8]} 33. h3 {[%clk 0:00:28.5]}
33... Rd6 {[%clk 0:00:47.6]} 34. Re5 {[%clk 0:00:25.5]} 34... Qf6 {[%clk
0:00:36.6]} 35. Re8 {[%clk 0:00:24.3]} 35... h6 {[%clk 0:00:33.5]} 36. Qxf6
{[%clk 0:00:13.4]} 36... Rdxf6 {[%clk 0:00:34.4]} 37. Rg3 {[%clk 0:00:13.2]}
37... Kh7 {[%clk 0:00:33.7]} 38. Bh5 {[%clk 0:00:12.1]} 38... Ra7 {[%clk
0:00:27.2]} 39. Bg6+ {[%clk 0:00:09.4]} 39... Rxg6 {[%clk 0:00:25.9]} 40. Rxg6
{[%clk 0:00:10.3]} 40... Kxg6 {[%clk 0:00:26.7]} 41. Rxg8 {[%clk 0:00:10.6]}
41... Kf6 {[%clk 0:00:23.2]} 42. Re8 {[%clk 0:00:10.3]} 42... Kf5 {[%clk
0:00:20.4]} 43. Kf2 {[%clk 0:00:10.1]} 43... Kf4 {[%clk 0:00:21.3]} 44. g3+
{[%clk 0:00:10.3]} 44... Kg5 {[%clk 0:00:21.9]} 45. Rf8 {[%clk 0:00:09.1]} 45...
h5 {[%clk 0:00:20.9]} 46. Ke3 {[%clk 0:00:08.4]} 46... h4 {[%clk 0:00:21]} 47.
g4 {[%clk 0:00:08.9]} 47... g6 {[%clk 0:00:21.7]} 48. Ne6+ {[%clk 0:00:08.4]}
48... Kh6 {[%clk 0:00:21.8]} 49. Rh8+ {[%clk 0:00:08.6]} 49... Rh7 {[%clk
0:00:20.3]} 50. g5+ {[%clk 0:00:09.5]} 1-0

[Event "*** SCC Grand Prix: Titled Tuesday Blitz"]
[Site "Chess.com"]
[Date "2020.08.04"]
[Round "8"]
[White "ferdipy"]
[Black "shnitez"]
[Result "0-1"]
[WhiteElo "2324"]
[BlackElo "2473"]
[TimeControl "180+1"]
[EndTime "15:18:05 PDT"]
[Termination "shnitez won by resignation"]

1. e4 {[%clk 0:03:00.9]} 1... c5 {[%clk 0:02:59.9]} 2. d4 {[%clk 0:03:00.3]}
2... cxd4 {[%clk 0:02:59.9]} 3. c3 {[%clk 0:03:00]} 3... dxc3 {[%clk 0:03:00.8]}
4. Nxc3 {[%clk 0:03:00.4]} 4... Nc6 {[%clk 0:03:00.9]} 5. Bc4 {[%clk 0:03:00.8]}
5... e6 {[%clk 0:03:01]} 6. Nf3 {[%clk 0:02:59.7]} 6... a6 {[%clk 0:03:01.3]} 7.
Bf4 {[%clk 0:02:59.3]} 7... b5 {[%clk 0:03:01.5]} 8. Bb3 {[%clk 0:02:59.8]} 8...
Na5 {[%clk 0:03:01.8]} 9. Bc2 {[%clk 0:02:59]} 9... Ne7 {[%clk 0:03:02.1]} 10.
b3 {[%clk 0:02:58.8]} 10... Ng6 {[%clk 0:03:02.1]} 11. Bd2 {[%clk 0:02:58.3]}
11... Bb7 {[%clk 0:03:00.7]} 12. O-O {[%clk 0:02:58.8]} 12... Rc8 {[%clk
0:02:59.5]} 13. Rc1 {[%clk 0:02:58]} 13... Ba3 {[%clk 0:02:58.8]} 14. Rb1 {[%clk
0:02:56.2]} 14... O-O {[%clk 0:02:59]} 15. Bg5 {[%clk 0:02:49.1]} 15... f6
{[%clk 0:02:55.5]} 16. Bd2 {[%clk 0:02:46.1]} 16... Nc6 {[%clk 0:02:53.7]} 17.
Ne2 {[%clk 0:02:44.7]} 17... Qe7 {[%clk 0:02:52.5]} 18. Ned4 {[%clk 0:02:27.4]}
18... Nb4 {[%clk 0:02:49.1]} 19. Be3 {[%clk 0:02:13.3]} 19... Nxa2 {[%clk
0:02:40.4]} 20. Ra1 {[%clk 0:02:09.7]} 20... Nc3 {[%clk 0:02:36.9]} 21. Qd3
{[%clk 0:02:09.3]} 21... Bxe4 {[%clk 0:02:35.3]} 22. Qd2 {[%clk 0:02:07.4]}
22... d5 {[%clk 0:02:17]} 23. Nxe6 {[%clk 0:01:57.1]} 23... Rfe8 {[%clk
0:01:49.2]} 24. Ned4 {[%clk 0:01:47.4]} 24... a5 {[%clk 0:01:46.8]} 25. Bd3
{[%clk 0:01:30.6]} 25... Bb4 {[%clk 0:01:42.7]} 26. Bxe4 {[%clk 0:01:21.9]}
26... dxe4 {[%clk 0:01:40.3]} 27. Ne1 {[%clk 0:01:22.1]} 27... Red8 {[%clk
0:01:31]} 28. Nec2 {[%clk 0:01:11.9]} 28... Bc5 {[%clk 0:01:21.6]} 29. Rxa5
{[%clk 0:01:08.4]} 29... Ne5 {[%clk 0:01:01.2]} 30. h3 {[%clk 0:00:46.3]} 30...
Qf7 {[%clk 0:00:54.1]} 31. Rfa1 {[%clk 0:00:31.1]} 31... h6 {[%clk 0:00:47.8]}
32. b4 {[%clk 0:00:24.7]} 32... Bb6 {[%clk 0:00:43.3]} 33. Ra6 {[%clk
0:00:22.8]} 33... Bxd4 {[%clk 0:00:36.4]} 34. Nxd4 {[%clk 0:00:22.5]} 34... Qc4
{[%clk 0:00:30.3]} 35. Qc2 {[%clk 0:00:14]} 35... Rxd4 {[%clk 0:00:27.4]} 36.
Qb2 {[%clk 0:00:09.6]} 36... Qxb4 {[%clk 0:00:24.3]} 37. Qxb4 {[%clk 0:00:04]}
37... Rxb4 {[%clk 0:00:24]} 38. Ra8 {[%clk 0:00:04.9]} 38... Rxa8 {[%clk
0:00:23]} 39. Rxa8+ {[%clk 0:00:05.8]} 39... Kh7 {[%clk 0:00:23.6]} 40. Ra7
{[%clk 0:00:05.7]} 40... Nd5 {[%clk 0:00:20.4]} 41. Bc5 {[%clk 0:00:03.6]} 41...
Rb1+ {[%clk 0:00:18.5]} 42. Kh2 {[%clk 0:00:03.4]} 42... Ng6 {[%clk 0:00:19.2]}
43. Bd6 {[%clk 0:00:03]} 43... b4 {[%clk 0:00:19]} 44. h4 {[%clk 0:00:03.9]}
44... b3 {[%clk 0:00:19]} 45. h5 {[%clk 0:00:04.1]} 45... Ngf4 {[%clk
0:00:15.6]} 46. Rb7 {[%clk 0:00:05]} 46... Nxh5 {[%clk 0:00:15.2]} 47. Bf8
{[%clk 0:00:05.1]} 47... Kg6 {[%clk 0:00:14.5]} 48. g4 {[%clk 0:00:06]} 48...
Ndf4 {[%clk 0:00:12.8]} 49. Rxg7+ {[%clk 0:00:06.9]} 49... Nxg7 {[%clk
0:00:11.1]} 0-1

[Event "*** SCC Grand Prix: Titled Tuesday Blitz"]
[Site "Chess.com"]
[Date "2020.08.04"]
[Round "8"]
[White "Gareth-Bale11"]
[Black "VerdeNotte"]
[Result "1-0"]
[WhiteElo "2773"]
[BlackElo "2847"]
[TimeControl "180+1"]
[EndTime "15:18:07 PDT"]
[Termination "Gareth-Bale11 won by resignation"]

1. d4 {[%clk 0:02:56.3]} 1... Nf6 {[%clk 0:02:59.8]} 2. c4 {[%clk 0:02:55.7]}
2... c5 {[%clk 0:02:58.3]} 3. d5 {[%clk 0:02:51.8]} 3... b5 {[%clk 0:02:58.5]}
4. cxb5 {[%clk 0:02:52.7]} 4... a6 {[%clk 0:02:58.6]} 5. bxa6 {[%clk 0:02:52.4]}
5... g6 {[%clk 0:02:58.7]} 6. Nc3 {[%clk 0:02:51.5]} 6... Bxa6 {[%clk
0:02:58.6]} 7. Nf3 {[%clk 0:02:45.4]} 7... d6 {[%clk 0:02:58.7]} 8. e4 {[%clk
0:02:43.8]} 8... Bxf1 {[%clk 0:02:58.3]} 9. Kxf1 {[%clk 0:02:44.7]} 9... Bg7
{[%clk 0:02:58.9]} 10. g3 {[%clk 0:02:38.4]} 10... O-O {[%clk 0:02:59.1]} 11.
Kg2 {[%clk 0:02:35.7]} 11... Nbd7 {[%clk 0:02:59.4]} 12. h3 {[%clk 0:02:33.7]}
12... Ra6 {[%clk 0:02:59.7]} 13. Re1 {[%clk 0:02:30.6]} 13... Qa8 {[%clk
0:02:59.7]} 14. Qc2 {[%clk 0:02:23]} 14... Rb8 {[%clk 0:02:59.3]} 15. a4 {[%clk
0:02:19.6]} 15... Rb4 {[%clk 0:02:48.5]} 16. Bd2 {[%clk 0:01:40.1]} 16... Ne8
{[%clk 0:02:47.4]} 17. Ra2 {[%clk 0:01:30.7]} 17... c4 {[%clk 0:02:40.6]} 18.
Be3 {[%clk 0:01:20.9]} 18... Ne5 {[%clk 0:02:31]} 19. Nxe5 {[%clk 0:01:19.7]}
19... Bxe5 {[%clk 0:02:31.9]} 20. Rea1 {[%clk 0:01:14]} 20... Nc7 {[%clk
0:02:31.4]} 21. a5 {[%clk 0:01:14]} 21... Qb7 {[%clk 0:02:23.7]} 22. Bb6 {[%clk
0:01:04.9]} 22... Na8 {[%clk 0:02:23.8]} 23. Na4 {[%clk 0:01:05]} 23... e6
{[%clk 0:02:08.5]} 24. dxe6 {[%clk 0:00:56.8]} 24... fxe6 {[%clk 0:02:09.4]} 25.
Ra3 {[%clk 0:00:53.9]} 25... Nxb6 {[%clk 0:01:57.2]} 26. Nxb6 {[%clk 0:00:50.6]}
26... d5 {[%clk 0:01:53.5]} 27. exd5 {[%clk 0:00:48.3]} 27... exd5 {[%clk
0:01:46.7]} 28. Re1 {[%clk 0:00:44.5]} 28... Rxb2 {[%clk 0:01:41.7]} 29. Qa4
{[%clk 0:00:39.6]} 29... Qf7 {[%clk 0:01:35.6]} 30. Rf3 {[%clk 0:00:36.1]} 30...
Bf6 {[%clk 0:01:12.3]} 31. Qc6 {[%clk 0:00:31.9]} 31... Kg7 {[%clk 0:01:07.7]}
32. Re6 {[%clk 0:00:31.6]} 32... Rxa5 {[%clk 0:00:37.8]} 33. Rexf6 {[%clk
0:00:29]} 33... Qe7 {[%clk 0:00:38.3]} 34. Nxd5 {[%clk 0:00:25.8]} 34... Qb7
{[%clk 0:00:28.3]} 35. Rf7+ {[%clk 0:00:24.7]} 35... Qxf7 {[%clk 0:00:28.2]} 36.
Rxf7+ {[%clk 0:00:25.6]} 36... Kxf7 {[%clk 0:00:29.1]} 37. Qc7+ {[%clk 0:00:26]}
37... Ke6 {[%clk 0:00:28.9]} 38. Qxa5 {[%clk 0:00:26]} 38... Rb3 {[%clk
0:00:27.8]} 39. Ne3 {[%clk 0:00:24]} 39... Rd3 {[%clk 0:00:27.5]} 40. Qa6+
{[%clk 0:00:23.4]} 40... Ke7 {[%clk 0:00:26.5]} 41. Qxc4 {[%clk 0:00:23.3]}
41... Rd7 {[%clk 0:00:26.2]} 42. Qg8 {[%clk 0:00:22.9]} 42... Kd6 {[%clk
0:00:25]} 43. h4 {[%clk 0:00:22.5]} 43... Kc7 {[%clk 0:00:19.9]} 44. Qc4+ {[%clk
0:00:21.7]} 44... Kd6 {[%clk 0:00:19.9]} 45. Ng4 {[%clk 0:00:21.2]} 45... Re7
{[%clk 0:00:18.7]} 46. Nf6 {[%clk 0:00:21.2]} 46... Ke5 {[%clk 0:00:16.1]} 47.
Qf4+ {[%clk 0:00:18]} 47... Ke6 {[%clk 0:00:16.1]} 48. Qg5 {[%clk 0:00:18.4]}
48... Kf7 {[%clk 0:00:06.9]} 49. Nxh7 {[%clk 0:00:18.5]} 49... Re6 {[%clk
0:00:07.5]} 50. h5 {[%clk 0:00:18]} 50... Kg7 {[%clk 0:00:07.3]} 51. hxg6 {[%clk
0:00:17.7]} 51... Rxg6 {[%clk 0:00:06.6]} 52. Qxg6+ {[%clk 0:00:18.1]} 52...
Kxg6 {[%clk 0:00:06.9]} 53. Nf8+ {[%clk 0:00:19]} 53... Kf7 {[%clk 0:00:07.2]}
54. Nd7 {[%clk 0:00:19.3]} 1-0

[Event "*** SCC Grand Prix: Titled Tuesday Blitz"]
[Site "Chess.com"]
[Date "2020.08.04"]
[Round "8"]
[White "XDPS"]
[Black "Anton_Demchenko"]
[Result "1-0"]
[WhiteElo "2700"]
[BlackElo "2815"]
[TimeControl "180+1"]
[EndTime "15:18:07 PDT"]
[Termination "XDPS won on time"]

1. e4 {[%clk 0:03:00.9]} 1... c5 {[%clk 0:02:57.6]} 2. Nf3 {[%clk 0:03:01]} 2...
d6 {[%clk 0:02:57.4]} 3. d4 {[%clk 0:03:01.2]} 3... cxd4 {[%clk 0:02:55.8]} 4.
Nxd4 {[%clk 0:03:02.1]} 4... Nf6 {[%clk 0:02:56.5]} 5. Nc3 {[%clk 0:03:02.3]}
5... Nc6 {[%clk 0:02:57.3]} 6. Be2 {[%clk 0:03:02.3]} 6... e5 {[%clk 0:02:55.9]}
7. Nf3 {[%clk 0:03:01.8]} 7... h6 {[%clk 0:02:55]} 8. O-O {[%clk 0:03:01.5]}
8... Be7 {[%clk 0:02:54.6]} 9. h3 {[%clk 0:03:01.7]} 9... O-O {[%clk 0:02:55.3]}
10. Re1 {[%clk 0:03:02.3]} 10... a6 {[%clk 0:02:55.1]} 11. Bf1 {[%clk
0:03:02.6]} 11... Qc7 {[%clk 0:02:52.1]} 12. Nd5 {[%clk 0:03:02.6]} 12... Nxd5
{[%clk 0:02:50.2]} 13. exd5 {[%clk 0:03:03.5]} 13... Nb8 {[%clk 0:02:41.1]} 14.
c4 {[%clk 0:02:58.9]} 14... a5 {[%clk 0:02:35.7]} 15. a4 {[%clk 0:02:57.6]}
15... Na6 {[%clk 0:02:35.2]} 16. Ra3 {[%clk 0:02:57.2]} 16... Bf5 {[%clk
0:02:23.6]} 17. Nh2 {[%clk 0:02:47.6]} 17... Nb4 {[%clk 0:02:18.7]} 18. Rg3
{[%clk 0:02:44.4]} 18... Bh4 {[%clk 0:02:16.3]} 19. Rf3 {[%clk 0:02:37.6]} 19...
Bc2 {[%clk 0:02:07.2]} 20. Qd2 {[%clk 0:02:33.9]} 20... f5 {[%clk 0:01:46.1]}
21. Ra3 {[%clk 0:02:00.1]} 21... f4 {[%clk 0:01:36.1]} 22. Rc3 {[%clk
0:01:55.4]} 22... Bxa4 {[%clk 0:01:31.7]} 23. c5 {[%clk 0:01:55.7]} 23... Be7
{[%clk 0:01:24.5]} 24. Ng4 {[%clk 0:01:46.1]} 24... Qb8 {[%clk 0:01:10.7]} 25.
Bc4 {[%clk 0:01:22.9]} 25... Bd7 {[%clk 0:01:06.3]} 26. Nxe5 {[%clk 0:01:17.9]}
26... Bf5 {[%clk 0:00:55.2]} 27. Nf3 {[%clk 0:01:11.3]} 27... Bf6 {[%clk
0:00:53.5]} 28. Nd4 {[%clk 0:00:47.9]} 28... Bh7 {[%clk 0:00:34.9]} 29. cxd6
{[%clk 0:00:43.8]} 29... Qxd6 {[%clk 0:00:32.6]} 30. Re6 {[%clk 0:00:43.8]}
30... Qd7 {[%clk 0:00:29.8]} 31. Qxf4 {[%clk 0:00:27.6]} 31... Kh8 {[%clk
0:00:30.2]} 32. Qg4 {[%clk 0:00:24]} 32... Nxd5 {[%clk 0:00:25.1]} 33. Rg3
{[%clk 0:00:13.9]} 33... Nc7 {[%clk 0:00:11.9]} 34. Rxf6 {[%clk 0:00:12]} 34...
Qxg4 {[%clk 0:00:11.8]} 35. Rxf8+ {[%clk 0:00:12.2]} 35... Rxf8 {[%clk
0:00:11.3]} 36. Rxg4 {[%clk 0:00:12.5]} 36... Rc8 {[%clk 0:00:10.3]} 37. Be3
{[%clk 0:00:10]} 37... a4 {[%clk 0:00:05.8]} 38. Ne6 {[%clk 0:00:09.5]} 38...
Bf5 {[%clk 0:00:02.4]} 39. Nxc7 {[%clk 0:00:02.5]} 39... Bxg4 {[%clk 0:00:02.2]}
40. hxg4 {[%clk 0:00:03.4]} 40... Rxc7 {[%clk 0:00:02.5]} 41. Bb5 {[%clk
0:00:04.2]} 41... Rc2 {[%clk 0:00:02.4]} 42. Bd4 {[%clk 0:00:03.9]} 42... Rc1+
{[%clk 0:00:01.7]} 43. Kh2 {[%clk 0:00:03.9]} 43... Rc2 {[%clk 0:00:01.1]} 44.
Bxa4 {[%clk 0:00:03.5]} 44... Rc4 {[%clk 0:00:01.2]} 45. Bxg7+ {[%clk 0:00:04]}
1-0

[Event "*** SCC Grand Prix: Titled Tuesday Blitz"]
[Site "Chess.com"]
[Date "2020.08.04"]
[Round "8"]
[White "DaggiGretarsson"]
[Black "dopolian"]
[Result "0-1"]
[WhiteElo "2605"]
[BlackElo "2509"]
[TimeControl "180+1"]
[EndTime "15:18:07 PDT"]
[Termination "dopolian won on time"]

1. d4 {[%clk 0:02:59.9]} 1... Nf6 {[%clk 0:02:59.9]} 2. c4 {[%clk 0:02:59.5]}
2... c5 {[%clk 0:02:59.9]} 3. d5 {[%clk 0:02:59.1]} 3... e6 {[%clk 0:03:00.1]}
4. Nc3 {[%clk 0:02:58.4]} 4... exd5 {[%clk 0:03:00.4]} 5. cxd5 {[%clk
0:02:58.7]} 5... d6 {[%clk 0:03:00.9]} 6. e4 {[%clk 0:02:57.8]} 6... g6 {[%clk
0:03:01]} 7. Bf4 {[%clk 0:02:57.8]} 7... a6 {[%clk 0:02:54.4]} 8. Nf3 {[%clk
0:02:51.4]} 8... Bg7 {[%clk 0:02:51.1]} 9. Nd2 {[%clk 0:02:49.2]} 9... b5 {[%clk
0:02:46.1]} 10. a4 {[%clk 0:02:44.7]} 10... b4 {[%clk 0:02:45.7]} 11. Na2 {[%clk
0:02:30.3]} 11... O-O {[%clk 0:02:42.6]} 12. Qc2 {[%clk 0:02:17.1]} 12... Re8
{[%clk 0:02:35.2]} 13. Be2 {[%clk 0:01:42.6]} 13... Qc7 {[%clk 0:02:25.5]} 14.
f3 {[%clk 0:01:34.4]} 14... Nfd7 {[%clk 0:01:40.8]} 15. Nc4 {[%clk 0:01:28.4]}
15... Ne5 {[%clk 0:01:38.5]} 16. Nc1 {[%clk 0:01:19]} 16... Nxc4 {[%clk
0:01:36.3]} 17. Bxc4 {[%clk 0:01:18.5]} 17... Nd7 {[%clk 0:01:33]} 18. a5 {[%clk
0:01:12.2]} 18... Ne5 {[%clk 0:01:30.1]} 19. Be2 {[%clk 0:01:00.7]} 19... Bd7
{[%clk 0:01:26.3]} 20. O-O {[%clk 0:00:49.3]} 20... Bb5 {[%clk 0:01:26.2]} 21.
Nb3 {[%clk 0:00:37.4]} 21... Bxe2 {[%clk 0:01:16.1]} 22. Qxe2 {[%clk 0:00:37.1]}
22... c4 {[%clk 0:01:16.3]} 23. Nd4 {[%clk 0:00:33.5]} 23... Qc5 {[%clk
0:00:49.4]} 24. Be3 {[%clk 0:00:31.3]} 24... Ng4 {[%clk 0:00:48.5]} 25. Rfd1
{[%clk 0:00:18]} 25... Nxe3 {[%clk 0:00:45.9]} 26. Qxe3 {[%clk 0:00:18.3]} 26...
c3 {[%clk 0:00:42.1]} 27. bxc3 {[%clk 0:00:17.2]} 27... bxc3 {[%clk 0:00:42.9]}
28. Nc2 {[%clk 0:00:16.5]} 28... Qxe3+ {[%clk 0:00:37]} 29. Nxe3 {[%clk
0:00:16.6]} 29... c2 {[%clk 0:00:29.9]} 30. Nxc2 {[%clk 0:00:16.2]} 30... Bxa1
{[%clk 0:00:30.5]} 31. Rxa1 {[%clk 0:00:16]} 31... Rab8 {[%clk 0:00:28.9]} 32.
Nd4 {[%clk 0:00:16.1]} 32... Rb2 {[%clk 0:00:19.9]} 33. Rd1 {[%clk 0:00:10.1]}
33... Reb8 {[%clk 0:00:18.7]} 34. Nc6 {[%clk 0:00:09.6]} 34... Rb1 {[%clk
0:00:17.5]} 35. Rf1 {[%clk 0:00:06.1]} 35... Rxf1+ {[%clk 0:00:16.1]} 36. Kxf1
{[%clk 0:00:06.6]} 36... Rb2 {[%clk 0:00:12.6]} 37. Ne7+ {[%clk 0:00:05.9]}
37... Kf8 {[%clk 0:00:09.3]} 38. Nc8 {[%clk 0:00:06.2]} 38... Rb5 {[%clk
0:00:07.5]} 39. Nxd6 {[%clk 0:00:06]} 39... Rxa5 {[%clk 0:00:08]} 40. Ke2 {[%clk
0:00:04.4]} 40... Ra2+ {[%clk 0:00:07.6]} 41. Kd3 {[%clk 0:00:04.7]} 41... Rxg2
{[%clk 0:00:05.5]} 42. Nc4 {[%clk 0:00:04.5]} 42... Rxh2 {[%clk 0:00:04.5]} 43.
d6 {[%clk 0:00:04.4]} 43... f6 {[%clk 0:00:03.5]} 44. Kd4 {[%clk 0:00:02.7]}
44... Kf7 {[%clk 0:00:02]} 45. Kd5 {[%clk 0:00:02.8]} 45... Rc2 {[%clk
0:00:01.6]} 0-1